[Event "The Schackveckan 2023: Chessweek Elo-tournaments Group 2"]
[Site "Göteborgs schackcentrum, Vegagatan 20, Gothenburg, Sweden"]
[Date "2023.08.09"]
[Round "5.6"]
[White "Dahlin, Emil"]
[Black "Gallardo, Guillermo"]
[Result "0-1"]
[TimeControl "90 minutes for 40 moves + 30 minutes for the rest of the game + 30 seconds per move from move one."]
[WhiteFideId "1771035"]
[BlackFideId "1773488"]
[WhiteElo "1284"]
[BlackElo "1644"]

1. e4 {[%clk 01:30:58]} {[%emt 00:00:02]} c6 {[%clk 01:30:51]} {[%emt
00:00:09]} 2. d4 {[%clk 01:31:10]} {[%emt 00:00:18]} d5 {[%clk 01:31:02]}
{[%emt 00:00:19]} 3. exd5 {[%clk 01:31:04]} {[%emt 00:00:36]} cxd5 {[%clk
01:31:19]} {[%emt 00:00:13]} 4. Bd3 {[%clk 01:31:18]} {[%emt 00:00:17]} Nc6
{[%clk 01:31:16]} {[%emt 00:00:32]} 5. c3 {[%clk 01:31:25]} {[%emt 00:00:23]}
Nf6 {[%clk 01:30:44]} {[%emt 00:01:01]} 6. Bf4 {[%clk 01:31:13]} {[%emt
00:00:42]} e6 {[%clk 01:27:10]} {[%emt 00:04:05]} 7. Nf3 {[%clk 01:29:47]}
{[%emt 00:01:55]} Bd6 {[%clk 01:26:57]} {[%emt 00:00:44]} 8. Bg3 {[%clk
01:26:34]} {[%emt 00:03:43]} Qc7 {[%clk 01:23:23]} {[%emt 00:04:03]} 9. O-O
{[%clk 01:24:52]} {[%emt 00:02:12]} O-O {[%clk 01:20:15]} {[%emt 00:03:38]} 10.
Qc2 {[%clk 01:23:00]} {[%emt 00:02:22]} e5 {[%clk 01:14:34]} {[%emt 00:06:11]}
11. dxe5 {[%clk 01:15:49]} {[%emt 00:07:41]} Nxe5 {[%clk 01:14:03]} {[%emt
00:01:01]} 12. Nxe5 {[%clk 01:14:49]} {[%emt 00:01:31]} Bxe5 {[%clk 01:14:25]}
{[%emt 00:00:09]} 13. Bxe5 {[%clk 01:12:45]} {[%emt 00:02:33]} Qxe5 {[%clk
01:14:37]} {[%emt 00:00:18]} 14. h3 {[%clk 01:12:03]} {[%emt 00:01:12]} Be6
{[%clk 01:04:18]} {[%emt 00:10:49]} 15. Nd2 {[%clk 01:09:44]} {[%emt 00:02:50]}
Qf4 {[%clk 01:01:15]} {[%emt 00:03:31]} 16. Rfe1 {[%clk 01:01:29]} {[%emt
00:08:45]} Rac8 {[%clk 00:57:46]} {[%emt 00:04:00]} 17. Re3 {[%clk 00:48:40]}
{[%emt 00:13:19]} d4 {[%clk 00:49:07]} {[%emt 00:09:09]} 18. Rf3 {[%clk
00:48:27]} {[%emt 00:00:42]} Qh6 {[%clk 00:49:08]} {[%emt 00:00:29]} 19. Re1
{[%clk 00:39:21]} {[%emt 00:09:37]} dxc3 {[%clk 00:46:39]} {[%emt 00:02:59]} 20.
bxc3 {[%clk 00:39:09]} {[%emt 00:00:42]} Nd5 {[%clk 00:42:22]} {[%emt
00:04:47]} 21. Bc4 {[%clk 00:33:01]} {[%emt 00:06:38]} Rfd8 {[%clk 00:36:04]}
{[%emt 00:06:48]} 22. Rd3 {[%clk 00:26:18]} {[%emt 00:07:13]} Nf4 {[%clk
00:13:57]} {[%emt 00:22:37]} 23. Rxd8+ {[%clk 00:21:51]} {[%emt 00:04:57]} Rxd8
{[%clk 00:13:42]} {[%emt 00:00:45]} 24. Re3 {[%clk 00:16:42]} {[%emt 00:05:38]}
Qg5 {[%clk 00:10:06]} {[%emt 00:04:06]} 25. Rg3 {[%clk 00:14:03]} {[%emt
00:03:09]} Rxd2 {[%clk 00:05:03]} {[%emt 00:05:33]} 26. Qc1 {[%clk 00:10:00]}
{[%emt 00:04:35]} Qd8 {[%clk 00:03:48]} {[%emt 00:01:44]} 27. Bf1 {[%clk
00:04:34]} {[%emt 00:05:55]} Rd1 {[%clk 00:03:06]} {[%emt 00:01:12]} 28. Qxf4
{[%clk 00:04:50]} {[%emt 00:00:14]} Rxf1+ {[%clk 00:03:25]} {[%emt 00:00:11]}
29. Kh2 {[%clk 00:04:53]} {[%emt 00:00:28]} Ra1 {[%clk 00:03:09]} {[%emt
00:00:45]} 30. Rd3 {[%clk 00:05:04]} {[%emt 00:00:20]} Qc8 {[%clk 00:01:48]}
{[%emt 00:01:51]} 31. Qd2 {[%clk 00:05:16]} {[%emt 00:00:18]} Qc7+ {[%clk
00:02:04]} {[%emt 00:00:14]} 32. g3 {[%clk 00:05:29]} {[%emt 00:00:16]} h6
{[%clk 00:02:20]} {[%emt 00:00:15]} 33. Rd8+ {[%clk 00:05:24]} {[%emt
00:00:35]} Kh7 {[%clk 00:02:48]} {[%emt 00:00:02]} 34. Qd3+ {[%clk 00:05:22]}
{[%emt 00:00:33]} f5 {[%clk 00:01:42]} {[%emt 00:01:35]} 35. Rd6 {[%clk
00:02:55]} {[%emt 00:02:57]} Qf7 {[%clk 00:01:33]} {[%emt 00:00:38]} 36. g4
{[%clk 00:01:43]} {[%emt 00:01:43]} Rxa2 {[%clk 00:01:40]} {[%emt 00:00:22]} 37.
Qe3 {[%clk 00:00:57]} {[%emt 00:01:17]} Bc8 {[%clk 00:01:27]} {[%emt 00:00:43]}
38. Qf3 {[%clk 00:00:39]} {[%emt 00:00:48]} Qc7 {[%clk 00:01:44]} {[%emt
00:00:12]} 39. Qg3 {[%clk 00:00:33]} {[%emt 00:00:37]} Rxf2+ {[%clk 00:00:40]}
{[%emt 00:01:34]} 40. Kg1 {[%clk 00:00:53]} {[%emt 00:00:10]} Qc5 {[%clk
00:00:49]} {[%emt 00:00:21]} 41. Qxf2 {[%clk 00:30:00]} {[%emt 00:00:52]} Qxd6
{[%clk 00:29:43]} {[%emt 00:01:36]} 42. gxf5 {[%clk 00:30:26]} {[%emt
00:00:35]} Qb6 {[%clk 00:29:45]} {[%emt 00:00:27]} 43. Qxb6 {[%clk 00:28:24]}
{[%emt 00:02:33]} axb6 {[%clk 00:30:13]} {[%emt 00:00:02]} 44. h4 {[%clk
00:28:01]} {[%emt 00:00:53]} Bxf5 {[%clk 00:30:32]} {[%emt 00:00:11]} 45. Kf2
{[%clk 00:28:09]} {[%emt 00:00:22]} g5 {[%clk 00:30:57]} {[%emt 00:00:05]} 46.
hxg5 {[%clk 00:27:47]} {[%emt 00:00:52]} hxg5 {[%clk 00:31:12]} {[%emt
00:00:15]} 47. Kg3 {[%clk 00:27:55]} {[%emt 00:00:22]} Kg6 {[%clk 00:31:36]}
{[%emt 00:00:05]} 48. Kf3 {[%clk 00:28:01]} {[%emt 00:00:25]} Kf6 {[%emt
00:01:26]} 0-1

[Event "The Schackveckan 2023: Chessweek Elo-tournaments Group 2"]
[Site "Göteborgs schackcentrum, Vegagatan 20, Gothenburg, Sweden"]
[Date "2023.08.10"]
[Round "6.1"]
[White "Yang, Mandi"]
[Black "Block, Benjamin"]
[Result "1-0"]
[TimeControl "90 minutes for 40 moves + 30 minutes for the rest of the game + 30 seconds per move from move one."]
[WhiteFideId "1774778"]
[BlackFideId "1765493"]
[WhiteElo "1457"]
[BlackElo "1679"]

1. e4 {[%clk 01:30:58]} {[%emt 00:00:02]} e5 {[%clk 01:30:48]} {[%emt
00:00:12]} 2. Nf3 {[%clk 01:31:18]} {[%emt 00:00:10]} Nc6 {[%clk 01:31:11]}
{[%emt 00:00:08]} 3. c3 {[%clk 01:31:24]} {[%emt 00:00:23]} d5 {[%clk
01:30:46]} {[%emt 00:00:54]} 4. Qa4 {[%clk 01:31:51]} {[%emt 00:00:04]} dxe4
{[%clk 01:29:56]} {[%emt 00:01:21]} 5. Nxe5 {[%clk 01:32:11]} {[%emt 00:00:09]}
Qd5 {[%clk 01:27:32]} {[%emt 00:02:54]} 6. Nxc6 {[%clk 01:29:16]} {[%emt
00:03:25]} bxc6 {[%clk 01:26:26]} {[%emt 00:01:36]} 7. Bc4 {[%clk 01:28:22]}
{[%emt 00:01:24]} Qd7 {[%clk 01:25:20]} {[%emt 00:01:36]} 8. O-O {[%clk
01:26:57]} {[%emt 00:01:55]} Nf6 {[%clk 01:23:46]} {[%emt 00:02:04]} 9. d3
{[%clk 01:22:39]} {[%emt 00:04:49]} exd3 {[%clk 01:23:33]} {[%emt 00:00:42]} 10.
Bxd3 {[%clk 01:18:57]} {[%emt 00:04:12]} Be7 {[%clk 01:20:37]} {[%emt
00:03:26]} 11. Rd1 {[%clk 01:10:08]} {[%emt 00:09:20]} Bd6 {[%clk 01:18:01]}
{[%emt 00:03:05]} 12. Bf5 {[%clk 01:06:39]} {[%emt 00:03:58]} Qxf5 {[%clk
01:16:10]} {[%emt 00:02:22]} 13. Qxc6+ {[%clk 01:02:13]} {[%emt 00:04:56]} Ke7
{[%clk 01:16:21]} {[%emt 00:00:19]} 14. Rxd6 {[%clk 00:54:08]} {[%emt
00:08:35]} cxd6 {[%clk 01:16:19]} {[%emt 00:00:33]} 15. Qxa8 {[%clk 00:54:35]}
{[%emt 00:00:04]} Qc2 {[%clk 01:14:55]} {[%emt 00:01:53]} 16. Qxa7+ {[%clk
00:54:48]} {[%emt 00:00:18]} Kf8 {[%clk 01:14:22]} {[%emt 00:01:01]} 17. Nd2
{[%clk 00:52:27]} {[%emt 00:02:52]} Qd1+ {[%clk 01:06:45]} {[%emt 00:08:07]} 18.
Nf1 {[%clk 00:51:37]} {[%emt 00:01:20]} Bf5 {[%clk 01:04:10]} {[%emt 00:03:04]}
19. Bf4 {[%clk 00:47:48]} {[%emt 00:04:20]} Qd3 {[%clk 00:59:01]} {[%emt
00:05:39]} 20. Ne3 {[%clk 00:40:38]} {[%emt 00:07:40]} g5 {[%clk 00:55:33]}
{[%emt 00:03:58]} 21. Rd1 {[%clk 00:35:42]} {[%emt 00:05:26]} Qe4 {[%clk
00:52:36]} {[%emt 00:03:27]} 22. Nxf5 {[%clk 00:27:34]} {[%emt 00:08:38]} Qxf5
{[%clk 00:51:51]} {[%emt 00:01:15]} 23. Bxd6+ {[%clk 00:27:59]} {[%emt
00:00:05]} Kg7 {[%clk 00:52:02]} {[%emt 00:00:19]} 24. Be7 {[%emt 00:07:10]}
Ng4 {[%clk 00:46:19]} {[%emt 00:01:01]} 25. Qd4+ {[%clk 00:26:23]} {[%emt
00:00:38]} f6 {[%clk 00:46:17]} {[%emt 00:00:31]} 26. Qa7 {[%clk 00:25:01]}
{[%emt 00:01:53]} Kg6 {[%clk 00:45:49]} {[%emt 00:00:57]} 27. h3 {[%clk
00:24:15]} {[%emt 00:01:16]} Ne5 {[%clk 00:45:35]} {[%emt 00:00:44]} 28. Rd6
{[%clk 00:22:37]} {[%emt 00:02:08]} Kh5 {[%clk 00:34:20]} {[%emt 00:13:54]} 29.
Rxf6 {[%clk 00:18:11]} {[%emt 00:04:57]} Qb1+ {[%clk 00:31:19]} {[%emt
00:03:31]} 30. Kh2 {[%clk 00:18:33]} {[%emt 00:00:08]} Ng6 {[%clk 00:30:45]}
{[%emt 00:01:04]} 31. Bf8 {[%clk 00:13:24]} {[%emt 00:05:39]} Qe4 {[%clk
00:27:40]} {[%emt 00:03:32]} 32. Qg7 {[%clk 00:11:03]} {[%emt 00:02:54]} g4
{[%clk 00:21:57]} {[%emt 00:06:13]} 33. Qh6# {[%clk 00:11:21]} {[%emt
00:00:11]} 1-0

[Event "The Schackveckan 2023: Chessweek Elo-tournaments Group 2"]
[Site "Göteborgs schackcentrum, Vegagatan 20, Gothenburg, Sweden"]
[Date "2023.08.10"]
[Round "6.2"]
[White "Lindholm, Marcus"]
[Black "Gallardo, Guillermo"]
[Result "0-1"]
[TimeControl "90 minutes for 40 moves + 30 minutes for the rest of the game + 30 seconds per move from move one."]
[WhiteFideId "1743473"]
[BlackFideId "1773488"]
[WhiteElo "1708"]
[BlackElo "1644"]

1. d4 {[%clk 01:30:05]} {[%emt 00:00:55]} Nf6 {[%clk 01:30:30]} {[%emt
00:00:30]} 2. c4 {[%clk 01:30:27]} {[%emt 00:00:08]} b6 {[%clk 01:30:48]}
{[%emt 00:00:12]} 3. Bg5 {[%clk 01:30:26]} {[%emt 00:00:31]} Bb7 {[%clk
01:30:48]} {[%emt 00:00:30]} 4. Bxf6 {[%clk 01:30:39]} {[%emt 00:00:18]} exf6
{[%clk 01:28:28]} {[%emt 00:02:50]} 5. Nc3 {[%clk 01:29:16]} {[%emt 00:01:52]}
Bb4 {[%clk 01:27:09]} {[%emt 00:01:49]} 6. Qc2 {[%clk 01:28:56]} {[%emt
00:00:49]} d5 {[%clk 01:23:37]} {[%emt 00:04:03]} 7. O-O-O {[%clk 01:24:42]}
{[%emt 00:04:44]} Bxc3 {[%clk 01:19:59]} {[%emt 00:04:08]} 8. bxc3 {[%clk
01:24:32]} {[%emt 00:00:41]} O-O {[%clk 01:17:08]} {[%emt 00:03:20]} 9. cxd5
{[%clk 01:24:40]} {[%emt 00:00:22]} Qxd5 {[%clk 01:15:29]} {[%emt 00:02:10]} 10.
f3 {[%clk 01:24:13]} {[%emt 00:00:56]} Nd7 {[%clk 01:10:12]} {[%emt 00:05:48]}
11. e4 {[%clk 01:24:17]} {[%emt 00:00:25]} Qa5 {[%clk 01:10:36]} {[%emt
00:00:06]} 12. Bd3 {[%clk 01:22:25]} {[%emt 00:02:23]} c5 {[%clk 01:04:02]}
{[%emt 00:07:03]} 13. d5 {[%clk 01:19:11]} {[%emt 00:03:44]} Ne5 {[%clk
01:00:48]} {[%emt 00:03:44]} 14. f4 {[%clk 01:15:57]} {[%emt 00:03:44]} Nxd3+
{[%clk 00:56:16]} {[%emt 00:05:03]} 15. Rxd3 {[%clk 01:15:58]} {[%emt
00:00:28]} Rfe8 {[%clk 00:39:07]} {[%emt 00:17:40]} 16. Rd2 {[%clk 01:09:32]}
{[%emt 00:06:55]} b5 {[%clk 00:37:07]} {[%emt 00:02:30]} 17. Nf3 {[%clk
01:08:02]} {[%emt 00:02:00]} Rad8 {[%clk 00:36:31]} {[%emt 00:01:07]} 18. Rhd1
{[%clk 00:59:45]} {[%emt 00:08:45]} Qa3+ {[%clk 00:28:35]} {[%emt 00:08:27]} 19.
Kb1 {[%clk 00:58:53]} {[%emt 00:01:23]} b4 {[%clk 00:24:06]} {[%emt 00:04:59]}
20. c4 {[%clk 00:57:43]} {[%emt 00:01:38]} Qe3 {[%clk 00:23:15]} {[%emt
00:01:21]} 21. e5 {[%clk 00:56:55]} {[%emt 00:01:19]} Qxf4 {[%clk 00:22:59]}
{[%emt 00:00:46]} 22. e6 {[%clk 00:57:10]} {[%emt 00:00:16]} fxe6 {[%clk
00:23:05]} {[%emt 00:00:23]} 23. dxe6 {[%clk 00:57:31]} {[%emt 00:00:09]} Rxd2
{[%clk 00:21:58]} {[%emt 00:01:37]} 24. Rxd2 {[%clk 00:57:11]} {[%emt
00:00:49]} Be4 {[%clk 00:20:40]} {[%emt 00:01:48]} 25. Rd3 {[%clk 00:57:08]}
{[%emt 00:00:34]} Qf5 {[%clk 00:18:22]} {[%emt 00:02:48]} 26. g4 {[%clk
00:55:47]} {[%emt 00:01:51]} Qxe6 {[%clk 00:18:20]} {[%emt 00:00:32]} 27. Ne1
{[%clk 00:55:38]} {[%emt 00:00:39]} Kf7 {[%clk 00:16:03]} {[%emt 00:02:47]} 28.
Kb2 {[%clk 00:55:36]} {[%emt 00:00:32]} Bxd3 {[%clk 00:14:57]} {[%emt
00:01:36]} 29. Nxd3 {[%clk 00:55:57]} {[%emt 00:00:09]} Qe2 {[%clk 00:14:01]}
{[%emt 00:01:27]} 30. Nxc5 {[%clk 00:56:17]} {[%emt 00:00:09]} Qxc2+ {[%clk
00:13:55]} {[%emt 00:00:36]} 31. Kxc2 {[%clk 00:56:37]} {[%emt 00:00:10]} Rc8
{[%clk 00:13:32]} {[%emt 00:00:53]} 32. Ne4 {[%clk 00:56:01]} {[%emt 00:01:06]}
Rxc4+ {[%clk 00:13:43]} {[%emt 00:00:18]} 33. Kd3 {[%clk 00:55:59]} {[%emt
00:00:33]} Rc6 {[%clk 00:10:58]} {[%emt 00:03:14]} 34. h4 {[%clk 00:56:02]}
{[%emt 00:00:28]} Ra6 {[%clk 00:10:59]} {[%emt 00:00:29]} 35. Kc4 {[%clk
00:56:13]} {[%emt 00:00:19]} Rxa2 {[%clk 00:11:22]} {[%emt 00:00:07]} 36. Kxb4
{[%clk 00:56:25]} {[%emt 00:00:18]} Rg2 {[%clk 00:10:59]} {[%emt 00:00:53]} 37.
Nd6+ {[%clk 00:56:00]} {[%emt 00:00:55]} Ke6 {[%clk 00:10:52]} {[%emt
00:00:38]} 38. Nb5 {[%clk 00:56:10]} {[%emt 00:00:20]} Rb2+ {[%clk 00:10:55]}
{[%emt 00:00:27]} 39. Kc5 {[%clk 00:55:49]} {[%emt 00:00:51]} Rxb5+ {[%clk
00:11:21]} {[%emt 00:00:05]} 0-1

[Event "The Schackveckan 2023: Chessweek Elo-tournaments Group 2"]
[Site "Göteborgs schackcentrum, Vegagatan 20, Gothenburg, Sweden"]
[Date "2023.08.10"]
[Round "6.3"]
[White "Pintaric, Felix"]
[Black "Green, David"]
[Result "1/2-1/2"]
[TimeControl "90 minutes for 40 moves + 30 minutes for the rest of the game + 30 seconds per move from move one."]
[WhiteFideId "1776096"]
[BlackFideId "1769332"]
[WhiteElo "1483"]
[BlackElo "1634"]

1. e4 {[%clk 01:30:57]} {[%emt 00:00:02]} c5 {[%clk 01:30:55]} {[%emt
00:00:06]} 2. c3 {[%clk 01:31:22]} {[%emt 00:00:05]} d5 {[%clk 01:31:19]}
{[%emt 00:00:06]} 3. exd5 {[%clk 01:31:50]} {[%emt 00:00:02]} Qxd5 {[%clk
01:31:47]} {[%emt 00:00:01]} 4. d4 {[%clk 01:31:15]} {[%emt 00:01:05]} Nc6
{[%clk 01:32:14]} {[%emt 00:00:03]} 5. Nf3 {[%clk 01:31:38]} {[%emt 00:00:07]}
Bg4 {[%clk 01:32:35]} {[%emt 00:00:09]} 6. Be2 {[%clk 01:31:57]} {[%emt
00:00:12]} cxd4 {[%clk 01:32:52]} {[%emt 00:00:13]} 7. cxd4 {[%clk 01:32:17]}
{[%emt 00:00:09]} e6 {[%clk 01:33:08]} {[%emt 00:00:15]} 8. Nc3 {[%clk
01:32:35]} {[%emt 00:00:11]} Bb4 {[%clk 01:33:30]} {[%emt 00:00:08]} 9. O-O
{[%clk 01:32:35]} {[%emt 00:00:29]} Qa5 {[%clk 01:33:18]} {[%emt 00:00:43]} 10.
h3 {[%clk 01:29:50]} {[%emt 00:03:15]} Bh5 {[%clk 01:30:49]} {[%emt 00:03:00]}
11. Be3 {[%clk 01:28:35]} {[%emt 00:01:45]} Nge7 {[%clk 01:23:46]} {[%emt
00:07:33]} 12. Qb3 {[%clk 01:25:50]} {[%emt 00:03:14]} Nf5 {[%clk 01:15:25]}
{[%emt 00:08:51]} 13. a3 {[%clk 01:21:59]} {[%emt 00:04:22]} Bxc3 {[%clk
01:11:36]} {[%emt 00:04:19]} 14. bxc3 {[%clk 01:21:31]} {[%emt 00:00:57]} Nxe3
{[%clk 01:06:52]} {[%emt 00:05:14]} 15. Qxb7 {[%clk 01:18:11]} {[%emt
00:03:50]} O-O {[%clk 01:03:26]} {[%emt 00:03:56]} 16. fxe3 {[%clk 01:14:00]}
{[%emt 00:04:41]} Qxc3 {[%clk 00:59:10]} {[%emt 00:04:45]} 17. Kh1 {[%clk
01:05:01]} {[%emt 00:09:31]} Rab8 {[%clk 00:53:29]} {[%emt 00:06:11]} 18. Qa6
{[%clk 01:00:36]} {[%emt 00:04:54]} Qxe3 {[%clk 00:48:04]} {[%emt 00:05:56]} 19.
Qxc6 {[%clk 01:00:02]} {[%emt 00:01:04]} Qxe2 {[%clk 00:48:17]} {[%emt
00:00:17]} 20. Qc5 {[%clk 00:52:34]} {[%emt 00:07:58]} Bxf3 {[%clk 00:45:10]}
{[%emt 00:03:36]} 21. Rxf3 {[%clk 00:52:52]} {[%emt 00:00:12]} Qa6 {[%clk
00:38:24]} {[%emt 00:06:54]} 22. Rg3 {[%emt 00:05:06]} Rb5 {[%clk 00:35:52]} 23.
Qe7 {[%clk 00:50:10]} {[%emt 00:02:00]} Rf5 {[%clk 00:33:56]} {[%emt 00:02:26]}
24. Rb1 {[%clk 00:48:00]} {[%emt 00:02:40]} Rf1+ {[%clk 00:21:42]} {[%emt
00:12:41]} 25. Kh2 {[%clk 00:47:03]} {[%emt 00:01:31]} Rxb1 {[%clk 00:01:43]}
{[%emt 00:23:06]} 26. Rxg7+ {[%clk 00:47:24]} {[%emt 00:00:08]} Kxg7 {[%clk
00:01:58]} {[%emt 00:00:16]} 27. Qg5+ {[%clk 00:47:48]} {[%emt 00:00:06]} Kh8
{[%clk 00:02:17]} {[%emt 00:00:10]} 28. Qf6+ {[%clk 00:48:10]} {[%emt
00:00:08]} Kg8 {[%clk 00:02:43]} {[%emt 00:00:04]} 29. Qg5+ {[%clk 00:48:26]}
{[%emt 00:00:14]} Kh8 {[%clk 00:02:18]} {[%emt 00:01:21]} 30. Qf6+ {[%clk
00:48:49]} {[%emt 00:00:07]} Kg8 {[%clk 00:02:46]} {[%emt 00:00:02]} 1/2-1/2